Cogmind - Beta 17 @@@ ROGUE MODE // 2026.08.18 @ 18:51:29 Player: Kel Result: Self-destructed Performance ------------- Evolutions (1) 500 Regions Visited (3) 600 Robots Destroyed (10) 50 Value Destroyed (110) 110 Prototype IDs (0) 0 Alien Tech Used (0) 0 Bonus (0) 0 TOTAL SCORE: 1260 Bonus ------- None Cogmind --------- Core Integrity 356/400 Matter 297/300 Energy 125/125 System Corruption 0% Temperature Warm (176) Movement Rolling (100) Location -9/Materials Parts ------- > --- POWER (1) -------- Light Ion Engine > --- PROPULSION (2) --- Compact Wheel > --- UTILITY (4) ------ Small Storage Unit Terrain Scan Processor Improved Targeting Computer > --- WEAPON (2) ------- Particle Cannon Datajack > --- INVENTORY (8) ---- Light Ion Engine Flight Unit Particle Cannon Mining Claw Peak State ------------ > --- POWER ------------ Light Ion Engine > --- PROPULSION ------- Wheel Compact Wheel > --- UTILITY ---------- Small Storage Unit Terrain Scan Processor Improved Targeting Computer > --- WEAPON ----------- Particle Cannon Datajack > --- INVENTORY -------- Light Ion Engine Flight Unit Particle Cannon Mining Claw [Rating: 11] Favorites ----------- Power Ion Engine Engine Ion Engine Propulsion Compact Wheel Wheel Compact Wheel Flight Unit Flight Unit Utility Small Storage Unit Storage Small Storage Unit Processor Terrain Scan Processor Weapon Medium Laser Energy Gun Medium Laser Energy Cannon Particle Cannon Special Melee Weapon Datajack Build | -11 -10 -10 -9 ------- Run | Yrd Mat Min Mat Slots Evolved 2 | . . . 2 Power . | . . . . Propulsion . | . . . . Utility 2 | . . . 2 Weapon . | . . . . Parts Attached 14 | 6 2 2 4 Power 3 | 1 1 . 1 Engine 3 | 1 1 . 1 Core . | . . . . Reactor . | . . . . Propulsion 4 | 2 . 2 . Treads . | . . . . Leg . | . . . . Wheel 2 | 2 . . . Hover . | . . . . Flight 2 | . . 2 . Utility 3 | 1 1 . 1 Device . | . . . . Storage 1 | 1 . . . Processor 2 | . 1 . 1 Hackware . | . . . . Protection . | . . . . Artifact . | . . . . Weapon 4 | 2 . . 2 Energy Gun 2 | 2 . . . Energy Cannon 1 | . . . 1 Ballistic Gun . | . . . . Ballistic Cannon . | . . . . Launcher . | . . . . Special Weapon . | . . . . Impact Weapon . | . . . . Slashing Weapon . | . . . . Piercing Weapon . | . . . . Special Melee Weapon 1 | . . . 1 Unidentified Prototypes . | . . . . Parts Lost 5 | . . 2 3 Power 1 | . . . 1 Propulsion 2 | . . 1 1 Utility . | . . . . Weapon 2 | . . 1 1 Highest Loss Streak 2 | . . 2 2 To Critical Strikes . | . . . . Average Backups 6 | 2 7 7 5 Power . | . 1 1 . Propulsion 1 | . 2 1 1 Utility . | . . 1 . Weapon 2 | . 2 3 2 Tool/Special . | . . . . Unused Backups 6 | . 1 2 3 Power 1 | . . . 1 Propulsion 2 | . . 2 . Utility . | . . . . Weapon 3 | . 1 . 2 Tool/Special . | . . . . Average Slot Usage (%) 89 | . 98 98 75 Engine 12 | . 14 14 9 Wheel 21 | . 28 12 20 Flight 3 | . . 14 . Storage 12 | . 14 14 11 Processor 16 | . 12 14 21 Energy Gun 21 | . 28 28 9 Peak Build Rating 11 | 6 9 9 11 Average Rating 8 | 4 8 8 9 On Entrance 5 | . 6 9 7 Avg Prop Armor Cover (%) . | . . . . Naked Turns . | . . . . Heaviest Build 13 | 11 13 13 12 Greatest Support 26 | 26 26 26 26 Greatest Overweight (x) 3 | . . 3 . Average Overweight (x) . | . . . . Largest Inventory Capacity 8 | 8 8 8 8 Average Capacity 7 | 7 8 8 8 Most Carried 8 | 4 8 8 7 Average Carried 6 | 2 7 7 5 Final Capacity 8 | 8 8 8 8 Final Carried 8 | 4 8 8 4 Class Distribution -------------------- 100% | Mutant Dominant Class ---------------- Mutant | -10/Materials Mutant | -10/Mines Mutant | -9/Materials Resources | -11 -10 -10 -9 ----------- Run | Yrd Mat Min Mat Matter Collected 332 | 225 . 39 68 Remotely . | . . . . Salvage Created 133 | . . 39 94 Parts 16 | . . 5 11 Haulers Intercepted . | . . . . Recyclers Shooed . | . . . . Parts Field Recycled . | . . . . Retrieved Matter . | . . . . Parts Self-Destructed . | . . . . Prevented . | . . . . Parts Restored . | . . . . Kills | -11 -10 -10 -9 ------- Run | Yrd Mat Min Mat Combat Hostiles Destroyed 10 | . . 3 7 Guns 7 | . . 3 4 Cannons 3 | . . . 3 Classes Destroyed 1 | . . 1 . Swarmer 10 | . . 3 7 Best Kill Streak 4 | . . 3 4 Combat Bots Only 4 | . . 3 4 Max Kills in Single Turn 2 | . . 2 1 Gunslinging 1 | . . 1 . Exploded . | . . . . Melee . | . . . . Uniques/NPCs Destroyed . | . . . . Combat | -11 -10 -10 -9 -------- Run | Yrd Mat Min Mat Hostile Shots Fired 55 | . . 19 36 Missed 9 | . . 4 5 Hits 46 | . . 15 31 Projectile 46 | . . 15 31 AOE 9 | . . 9 . Damage Taken 628 | . . 374 254 Core 200 | . . 156 44 Absorbed by Shields . | . . . . Core Remaining (%) 68 | 100 . 37 . Volleys Fired 22 | . . 3 19 Largest 2 | . . 2 1 Hottest 90 | . . 90 68 Shots Fired 25 | . . 6 19 Gun 17 | . . 6 11 Cannon 8 | . . . 8 Launcher . | . . . . Special . | . . . . Kinetic . | . . . . Thermal 25 | . . 6 19 Explosive . | . . . . Electromagnetic . | . . . . Robot Hit Streak 5 | . . 3 5 Robot Miss Streak 3 | . . 1 3 Penetration Max . | . . . . Secondary Targets 1 | . . 1 . Max Gunslinging Chain 1 | . . 1 . Shots Hit Robots 16 | . . 4 12 Core Hits 10 | . . 3 7 Critical Kills . | . . . . Critical Parts Destroyed . | . . . . Critical Strikes . | . . . . Melee Attacks 1 | . . . 1 Impact . | . . . . Slashing . | . . . . Piercing . | . . . . Sneak Attacks . | . . . . Combat Hostiles . | . . . . Follow-up Attacks . | . . . . Damage Inflicted 241 | . . 51 190 Guns 138 | . . 51 87 Cannons 103 | . . . 103 Explosions . | . . . . Melee . | . . . . Ramming . | . . . . Kinetic . | . . . . Thermal 241 | . . 51 190 Explosive . | . . . . Electromagnetic . | . . . . Impact . | . . . . Slashing . | . . . . Piercing . | . . . . Highest Corruption . | . . . . Average Corruption . | . . . . Corruption Purged . | . . . . Corruption Blocked . | . . . . Overload Shots . | . . . . Overflow Damage 1 | . . . 1 Projectiles 1 | . . . 1 Explosions . | . . . . Melee . | . . . . Knockbacks . | . . . . Impact . | . . . . Kinetic . | . . . . Secondary . | . . . . Self-Inflicted Damage . | . . . . Shots . | . . . . Rammed . | . . . . Targets Rammed . | . . . . Kicked . | . . . . Crushed . | . . . . Highest Temperature 176 | . . 90 176 Average Temperature 54 | . . 46 58 Received Heat Transfer . | . . . . Siege Activations . | . . . . Martial Activations . | . . . . Shielding Activations . | . . . . Robots Disrupted . | . . . . Combat Hostiles . | . . . . Robots Corrupted . | . . . . Combat Hostiles . | . . . . Parts Fried . | . . . . Impact Corruptions . | . . . . Robots Melted . | . . . . Combat Hostiles . | . . . . Parts Melted 2 | . . . 2 Heat Transferred 580 | . . 136 444 Parts Sabotaged . | . . . . Parts Stolen . | . . . . Parts Stripped . | . . . . Power Chain Reactions . | . . . . Alert | -11 -10 -10 -9 ------- Run | Yrd Mat Min Mat Maximum Alert Level . | . . . . Low Security (%) 100 | 100 100 100 100 Level 1 . | . . . . Level 2 . | . . . . Level 3 . | . . . . Level 4 . | . . . . Level 5 . | . . . . High Security . | . . . . Max Security . | . . . . Peak Influence 110 | . . 70 110 Initial . | . . . . Average 14 | . . 33 24 Influence Increases 260 | . . 70 190 Destroy 0b10 Robot/C 200 | . . 60 140 Destroy Leader 30 | . . 10 20 Disable Machine 15 | . . . 15 Lose Combat Pursuer 15 | . . . 15 Influence Decreases 150 | . . 70 80 Time Decay 100 | . . 50 50 Lost Part 50 | . . 20 30 Squads Dispatched 1 | . 1 . . Investigation . | . . . . Extermination . | . . . . Reinforcement 1 | . 1 . . Assault . | . . . . Garrison . | . . . . Intercept . | . . . . Searches Triggered . | . . . . Construction Impeded . | . . . . Haulers Reinforced . | . . . . Active Scanning Responses . | . . . . Cargo Convoy Interrupts . | . . . . Stealth | -11 -10 -10 -9 --------- Run | Yrd Mat Min Mat Distress Signals . | . . . . Communications Jammed . | . . . . Distress Signals . | . . . . Times Spotted 19 | . 3 8 8 Peak Tracking Total 4 | . 2 3 4 Tactical Retreats 1 | . . . 1 Traps | -11 -10 -10 -9 ------- Run | Yrd Mat Min Mat Traps Triggered . | . . . . Indirectly . | . . . . Trap Hack Attempts . | . . . . Triggered . | . . . . Disarmed . | . . . . Reprogrammed . | . . . . Reused . | . . . . Traps Extracted . | . . . . Installed . | . . . . Triggered . | . . . . Machines | -11 -10 -10 -9 ---------- Run | Yrd Mat Min Mat Machines Disabled 1 | . . . 1 Max in Single Turn 1 | . . . 1 Machines Repaired . | . . . . Machines Dismantled . | . . . . Machines Sabotaged . | . . . . Overloaded Fab Kills . | . . . . Hacking | -11 -10 -10 -9 --------- Run | Yrd Mat Min Mat Machines Accessed 1 | . . . 1 Terminals 1 | . . . 1 Fabricators . | . . . . Repair Stations . | . . . . Recycling Units . | . . . . Scanalyzers . | . . . . Garrison Access . | . . . . Total Hacks 3 | . . . 3 Successful 2 | . . . 2 Failed 1 | . . . 1 Catastrophic . | . . . . Database Lockouts . | . . . . Manual 2 | . . . 2 Terminals 3 | . . . 3 Fabricators . | . . . . Repair Stations . | . . . . Recycling Units . | . . . . Scanalyzers . | . . . . Garrison Access . | . . . . Terminal Hacks 2 | . . . 2 Record 2 | . . . 2 Fabricator Hacks . | . . . . Repair Station Hacks . | . . . . Recycling Unit Hacks . | . . . . Scanalyzer . | . . . . Garrison Access Hacks . | . . . . Unauthorized Hacks . | . . . . Terminals . | . . . . Fabricators . | . . . . Repair Stations . | . . . . Recycling Units . | . . . . Scanalyzers . | . . . . Garrison Access . | . . . . Data Cores Recovered . | . . . . Used . | . . . . Hacking Detections . | . . . . Full Trace Events . | . . . . Feedback Events . | . . . . Feedback Blocked . | . . . . Robot Schematics Acquired . | . . . . Robots Built . | . . . . Authchips . | . . . . Time . | . . . . Total Robot Build Rating . | . . . . Part Schematics Acquired . | . . . . Parts Built . | . . . . Authchips . | . . . . Time . | . . . . Total Part Build Rating . | . . . . Part Studies Acquired . | . . . . Parts Repaired . | . . . . Time . | . . . . Parts Recycled . | . . . . Recycled Matter . | . . . . Retrieved Matter . | . . . . Retrieved Components . | . . . . Parts Scanalyzed . | . . . . Part Schematics Acquired . | . . . . Parts Damaged . | . . . . Bothacking | -11 -10 -10 -9 ------------ Run | Yrd Mat Min Mat Used RIF Installer . | . . . . Robots Hacked 1 | . . . 1 Non-combat . | . . . . Combat 1 | . . . 1 Robot Hacks Applied 1 | . . . 1 parse_system 1 | . . . 1 Relay Couplers Released . | . . . . Fabnet Peak Effective % . | . . . . Robots Rewired . | . . . . Allies Hacked . | . . . . Hacks Repelled . | . . . . Allies | -11 -10 -10 -9 -------- Run | Yrd Mat Min Mat Total Allies . | . . . . Largest Group . | . . . . Highest-Rated Group . | . . . . Highest-Rated Ally . | . . . . Total Orders . | . . . . Ally Attacks . | . . . . Total Damage . | . . . . Kills . | . . . . Allies Corrupted . | . . . . Allies Melted . | . . . . Intel | -11 -10 -10 -9 ------- Run | Yrd Mat Min Mat Active Infowar (turns) . | . . . . Robot Analysis Total . | . . . . Derelict Logs Recovered . | . . . . Drone Launches . | . . . . Drone Recoveries . | . . . . Exploration | -11 -10 -10 -9 ------------- Run | Yrd Mat Min Mat Turns Passed 626 | 80 218 126 202 Spaces Moved 568 | 78 223 98 169 Core 7 | 7 . . . Treads . | . . . . Legs . | . . . . Wheels 508 | 71 223 45 169 Hover . | . . . . Flight 53 | . . 53 . Fastest Speed 50 | 50 90 90 90 Average Speed 93 | 86 90 110 90 Slowest Speed 280 | 90 90 280 90 Overloaded Moves . | . . . . Propulsion Burnouts . | . . . . Robots Hopped . | . . . . Potential Cave-ins . | . . . . Cave-ins Triggered . | . . . . Exploration Rate (%) 16 | 4 24 22 14 Regions Visited 3 Branch Regions 1 Pre-discovered Areas . | . . . . Known Exits Taken . | . . . . Unknown Exits Taken 3 | 1 1 1 . Scrap Searched . | . . . . Spaces Dug . | . . . . Terrain Destroyed . | . . . . Melee . | . . . . Projectile . | . . . . AOE . | . . . . Terrain Rammed . | . . . . Walls Destroyed . | . . . . Machines Disabled . | . . . . Actions | -11 -10 -10 -9 --------- Run | Yrd Mat Min Mat Total 636 | 87 240 111 198 Wait 14 | . 9 3 2 Move 565 | 77 222 97 169 Hop . | . . . . Pick Up 13 | 4 5 3 1 Fast Attach 7 | 6 1 . . Attach 5 | . . . 5 Detach . | . . . . Swap 4 | . 1 2 1 Drop 5 | . 2 3 . Fire 22 | . . 3 19 Melee 1 | . . . 1 Ram . | . . . . Kick . | . . . . Crush . | . . . . Escape Stasis . | . . . . Rewire . | . . . . Trap . | . . . . Miscellaneous . | . . . . Route ------- -11/Scrapyard -10/Materials -10/Mines -9/Materials History --------- Turn | Location | Event 2 | -11/Scrapyard | Met Revision 17 21 | -11/Scrapyard | Discovered new exit (range 16) 81 | -11/Scrapyard | Entered Materials 152 | -10/Materials | Discovered new exit (range 9) 299 | -10/Materials | Entered Mines 315 | -10/Mines | Build established: Mutant 413 | -10/Mines | Assembled infested the area 414 | -10/Mines | Discovered new exit (range 5) 425 | -10/Mines | Core integrity fell below 50% 425 | -10/Mines | Entered Materials 425 | -9/Materials | Evolved 2 slots: Utility x2 627 | -9/Materials | Self-destructed Last Messages --------------- 00560_ Acquired 11 matter. 00564_ Acquired 26 matter. 00565_ Acquired 19 matter. 00574_ Acquired Lgt. Ion Engine. 00591_ K-01 Serf collects debris. 00606_ Med. Laser destroyed. 00607_ K-01 Serf collects debris. 00608_ Jacked S-10 Pest... >>parse_system Reading system data... 00613_ S-10 Pest destroyed. 00614_ K-01 Serf collects debris. 00615_ Material Processor disabled. 00615_ Wheel destroyed. 00617_ S-10 Pest destroyed. 00618_ Acquired 12 matter. 00618_ K-01 Serf collects debris. 00621_ Destroyed Flight Unit. 00622_ K-01 Serf collects debris. 00625_ S-10 Pest destroyed. Map ----- +----------------------------------------------------+ | ?????????????????????????????????????????????????? | | ?????????????????????????????????????????????????? | | ?????????????????????????????????????????????????? | | ????????????????????????????? ???????????????????? | | ????????????????????????????? ???????????????????? | | ????????????????????????????? ???????????????????? | | ????????????????????????????? ???????????????????? | | ????????????????????????????? ???????????????????? | | ????????????????????????????? ???????????????????? | | ????????????????????????????? ???????????????????? | | ????????????????????????????# #??????????????????? | | ????????????????????????????# #??????????????????? | | ????????????????????????????# #??????????????????? | | ????????????????????????????# #??????????????????? | | ????????????????????????????# #??????????????????? | | ????????????????????????????# #??????????????????? | | ???????????????????########?# #??????????????????? | | ??????????????????? #?# #??????????????????? | | ?????????????????? #?# #??????????????????? | | ?????????????????? ### #??????????????????? | | ??????????????????? """ # #??????????????????? | | ??????????????????? """"" # #??????????????????? | | ??????????????????? """""=# #??????????????????? | | ?????????????????# """ "*/ #??????????????????? | | ?????????????????# """%=# #?????????########## | | ?????????????????# %[ =@# #?????????# | | ????????????? ############# #?????????# | | ????????????# #?????????# | | ????????????+ #?????????# """ """ | | ????????????# #?????????# """ """ | | ?????????????############## #?????????# """ """ | | ????????????????########### #?????????# | | ????????????????# # #?????????# | | ????????????????# """"""" # ##############+##### | | ????????????????# """"""" # | | ????????????????# """""""=+ | | ????????????????# """"""" # | | ????????????????# """"""" ######################## | | ????????????????# = =#??????????????????????? | | ????????????????# ! *=/#??????????????????????? | | ????????????????###########??????????????????????? | | ?????????????????????????????????????????????????? | | | | | | | | | | | | | | | | | +----------------------------------------------------+ Best States ------------- Heat Dissipation 28 Energy Generation 10 Energy Capacity 250 Matter Stores 297 Matter Capacity 300 Sight Range 16 Terrain Scan Density 85 Evasion (%) 42 Targeting Accuracy 6 Item Schematics ----------------- None Robot Schematics ------------------ None Fabricated ------------ Nothing Repaired ---------- Nothing Studied --------- None Alien Tech Used ----------------- None Achievements -------------- You Again Challenges ------------ None Game ------ Seed TachyonFissionCore Manual? 0 Play Time 00:15:02 Cumulative 23.2 hours Start 2026.08.18 @ 18:33:19 End 2026.08.18 @ 18:51:29 Sessions 1 Manual Loads 0 Difficulty Rogue Special Mode None Game No. 47 Rogue 47 Adventurer 0 Explorer 0 Win Type - Total 0 Types 0/0/0/0/0/0/0/0/0/0 Lore% 13 Gallery% 20 Achievement% 14 Wizard Run 0 Options --------- Layout 0 ASCII 0 Keyboard 1 Movement Numpad Keybinds 0 Fullscreen 1 Font 18/SmallcapsGlow Map View 76x50 Zoom Use 0% Tactical HUD 1 Map Filters NONE Filters NONE Steam 1 RUN: 7b1f4661-758e-4532-8080-60754835d795